{"text_format":"1","workbook":"xlsx","n_sheets":4,"sheets":["Data","Table","Classes","Teachers"],"not_rendered":{"charts":0,"images":0,"macros":1,"external_links":0,"defined_names":9,"comments":0,"pivot_tables":0},"unopened":[],"bounds":{"document_bytes":16777216,"sheet_cells":100000,"rows_first":2000,"rows_last":500,"rows_between":2000,"halvings":0,"cell_chars":16384,"cell_head_chars":4096},"cells_cut":0,"cells_raw":0,"read":"whole","date_system":"1900"}

{"sheet":"Data","index":0,"n_rows":27,"n_cols":31,"rows_kept":27,"cut":false,"hidden":false,"merged":[[14,1,14,2]]}
[]
[null,"الادارة ","ادارة ابوتيج التعليمية",null,null,null,"م","المعلمون","النصاب","المواد","الفصول","ريادة","اشراف",null,null,null,null,null,null,null,null,null,null,null,null,null,"الصف",1,4,5,6]
[null,"المدرسة","مدرسة نزلة باقور ب . م",null,null,null,1,"مختار",18,"عربى","1/4",null,null,null,null,null,null,null,null,null,null,null,null,null,null,null,"السبت",6,7,7,7]
[null,"العام الدراسى","2019/2018 م",null,null,null,2,"نصر",18,"خط","2/4",null,null,null,null,null,null,null,null,null,null,null,null,null,null,null,"الأحد",6,7,7,7]
[null,"مسئول الحاسب","مختار حسين محمود",null,null,null,3,"سميرة",18,"رياضيات","3/4",null,null,null,null,null,null,null,null,null,null,null,null,null,null,null,"الإثنين",6,7,7,7]
[null,"لجنة الجدول","مسعد سيدهم -احمد رفعت",null,null,null,4,"محمود حسن",18,"دراسات","4/4",null,null,null,null,null,null,null,null,null,null,null,null,null,null,null,"الثلاثاء",5,6,6,6]
[null,"مدير المدرسة","سليمان محمد حفنى",null,null,null,5,"سمير عثمان",18,"علوم ","5/4",null,null,null,null,null,null,null,null,null,null,null,null,null,null,null,"الأربعاء",5,6,6,6]
[null,"خطة رقم",1,null,null,null,6,"وردانى",18,"E","1/5",null,null,null,null,null,null,null,null,null,null,null,null,null,null,null,"الخميس",5,6,6,6]
[null,"العمل به اعتبارا","22/ 9 / 2018 م",null,null,null,7,"منى",18,"فنية","2/5",null,null,null,null,null,null,null,null,null,null,null,null,null,null,null,"جملة",{"$f":"SUM(AB3:AB8)","v":33},{"$f":"SUM(AC3:AC8)","v":39},{"$f":"SUM(AD3:AD8)","v":39},{"$f":"SUM(AE3:AE8)","v":39}]
[null,"الفترة","المسائية",null,null,null,8,"احمد",18,"ألعاب","3/5"]
[null,null,null,null,null,null,9,"س",6,"حاسب","4/5"]
[null,null,null,null,null,null,10,"سيد",24,"مجالات","5/5"]
[null,null,null,null,null,null,11,"منال",22,"خدمة"]
[null,null,null,null,null,null,12,"سامية",22,"دين"]
[null,"مواعيد الحصص",null,null,null,null,13,"امل",20]
[null,"الاولى","12.10 : 12.40",null,null,null,14,"كريمة",24]
[null,"الثانية","12.40 : 1.20",null,null,null,15,"اسماء بكير",24]
[null,"الثالثة","1.20 : 2.00",null,null,null,16,"ولاء خلف",12]
[null,"الرابعة","2.00 : 2.40",null,null,null,17,"عبير",24]
[null,"الخامسة","2.50 : 3.30",null,null,null,18,"اسماء عثمان",22]
[null,"السادسة","3.30 : 4.10",null,null,null,19,"سماح",22]
[null,"السابعة","4.10 : 5.00",null,null,null,20,"شيماء رمضان",20]
[null,null,null,null,null,null,21,"شيماء عبدالرحيم",10]
[null,null,null,null,null,null,22,"ولاء خالد",10]
[null,null,null,null,null,null,23,"احلام",16]
[null,null,null,null,null,null,24,"رانيا",14]
[null,null,null,null,null,null,25,"صديقة",4]

{"sheet":"Table","index":1,"n_rows":50,"n_cols":68,"rows_kept":50,"cut":false,"hidden":false,"merged":[[5,27,6,27],[5,28,6,28],[5,29,6,29],[5,30,6,30],[5,31,6,31],[5,22,6,22],[5,23,6,23],[5,24,6,24],[5,25,6,25],[5,26,6,26],[5,17,6,17],[5,18,6,18],[5,19,6,19],[5,20,6,20],[5,21,6,21],[5,12,6,12],[5,13,6,13],[5,14,6,14],[5,15,6,15],[5,16,6,16],[43,0,49,0],[5,61,6,61],[15,0,21,0],[22,0,28,0],[29,0,35,0],[36,0,42,0],[5,56,6,56],[5,57,6,57],[5,58,6,58],[5,59,6,59],[5,60,6,60],[5,51,6,51],[5,52,6,52],[5,53,6,53],[5,54,6,54],[5,55,6,55],[5,46,6,46],[5,47,6,47],[5,48,6,48],[5,49,6,49],[5,50,6,50],[5,41,6,41],[5,42,6,42],[5,43,6,43],[5,44,6,44],[5,45,6,45],[3,60,4,61],[3,0,6,0],[3,1,6,1],[5,4,6,4],[5,5,6,5],[5,6,6,6],[5,7,6,7],[5,8,6,8],[5,9,6,9],[5,10,6,10],[5,11,6,11],[5,32,6,32],[5,33,6,33],[5,34,6,34],[3,50,4,51],[3,52,4,53],[3,30,4,31],[3,54,4,55],[3,56,4,57],[3,58,4,59],[3,40,4,41],[3,42,4,43],[3,44,4,45],[3,46,4,47],[3,48,4,49],[3,20,4,21],[3,22,4,23],[3,24,4,25],[3,26,4,27],[3,28,4,29],[8,0,14,0],[3,2,4,3],[3,4,4,5],[3,6,4,7],[3,8,4,9],[5,2,6,2],[5,3,6,3],[1,10,1,11],[5,40,6,40],[5,35,6,35],[5,36,6,36],[5,37,6,37],[5,38,6,38],[5,39,6,39],[3,10,4,11],[3,32,4,33],[3,34,4,35],[3,36,4,37],[3,38,4,39],[3,12,4,13],[3,14,4,15],[3,16,4,17],[3,18,4,19]]}
[]
[null,null,null,null,"جدول حصص المدرسة رقم",null,null,{"$f":"Data!C8","v":1},"يعمل به اعتبارا من",null,{"$f":"Data!C9","v":"22/ 9 / 2018 م"}]
[]
["اليوم","الحصة","1/1",null,"2/1",null,"3/1",null,"4/1",null,"5/1",null,"1/2",null,"2/2",null,"3/2",null,"4/2",null,"5/2",null,"1/3",null,"2/3",null,"3/3",null,"4/3",null,"5/3",null,"1/4",null,"2/4",null,"3/4",null,"4/4",null,"5/4",null,"1/5",null,"2/5",null,"3/5",null,"4/5",null,"5/5",null,"1/6",null,"2/6",null,"3/6",null,"4/6",null,"5/6",null,null,null,"اختبار التضارب","النصاب القانونى","الموزع حاليا","الموقف "]
[null,null,null,null,null,null,null,null,null,null,null,null,null,null,null,null,null,null,null,null,null,null,null,null,null,null,null,null,null,null,null,null,null,null,null,null,null,null,null,null,null,null,null,null,null,null,null,null,null,null,null,null,null,null,null,null,null,null,null,null,null,null,null,null,"محمود حسن",{"$f":"IFERROR(INDEX(quorums,MATCH($BM5,Teachers,0)),\"\")","v":18},{"$f":"IF(BM5=\"\",\"\",MokhtarCountif(BM5,MyTable))","v":0},{"$f":"IF(BO5=\"\",\"\",IF(BO5<BN5,\"ناقص\",IF(BO5>BN5,\"زائد\",IF(BO5=BN5,\"مكتمل\",\"لم يوزع\"))))","v":"ناقص"}]
[null,null,"المادة","المعلم","المادة","المعلم","المادة","المعلم","المادة","المعلم","المادة","المعلم",null,null,null,null,null,null,null,null,null,null,null,null,null,null,null,null,null,null,null,null,"المادة","المعلم","المادة","المعلم","المادة","المعلم","المادة","المعلم","المادة","المعلم","المادة","المعلم","المادة","المعلم","المادة","المعلم","المادة","المعلم","المادة","المعلم","المادة","المعلم","المادة","المعلم","المادة","المعلم","المادة","المعلم","المادة","المعلم"]
[]
["Helper",null,"1/1","1/1","2/1","2/1","3/1","3/1","4/1","4/1","5/1","5/1","1/2","1/2","2/2","2/2","3/2","3/2","4/2","4/2","5/2","5/2","1/3","1/3","2/3","2/3","3/3","3/3","4/3","4/3","5/3","5/3","1/4","1/4","2/4","2/4","3/4","3/4","4/4","4/4","5/4","5/4","1/5","1/5","2/5","2/5","3/5","3/5","4/5","4/5","5/5","5/5","1/6","1/6","2/6","2/6","3/6","3/6","4/6","4/6","5/6","5/6","Helper"]
["السبت",1,null,null,null,null,null,null,null,null,null,null,null,null,null,null,null,null,null,null,null,null,null,null,null,null,null,null,null,null,null,null,"عربى","عبير","رياضيات","احمد","دراسات","سيد","عربى","سامية","عربى","منى","عربى","منال","حاسب","احلام","رياضيات","وردانى","عربى","سماح","عربى","مختار",null,null,null,null,null,null,null,null,null,null,{"$f":"$A$9&B9","v":"السبت1"}]
[null,2,null,null,null,null,null,null,null,null,null,null,null,null,null,null,null,null,null,null,null,null,null,null,null,null,null,null,null,null,null,null,"عربى","عبير","رياضيات","احمد","دراسات","سيد","عربى","سامية","عربى","منى","عربى","منال","حاسب","احلام","رياضيات","وردانى","عربى","سماح","عربى","مختار",null,null,null,null,null,null,null,null,null,null,{"$f":"$A$9&B10","v":"السبت2"}]
[null,3,null,null,null,null,null,null,null,null,null,null,null,null,null,null,null,null,null,null,null,null,null,null,null,null,null,null,null,null,null,null,"رياضيات","احمد","E","اسماء بكير","عربى","سامية","رياضيات","كريمة","دين","منى","علوم ","امل","عربى","منال","دين","اسماء عثمان","رياضيات","وردانى","دراسات","سيد",null,null,null,null,null,null,null,null,null,null,"السبت3"]
[null,4,null,null,null,null,null,null,null,null,null,null,null,null,null,null,null,null,null,null,null,null,null,null,null,null,null,null,null,null,null,null,"رياضيات","احمد","مجالات","سميرة + محمود حسن + سمير عثمان","عربى","سامية","رياضيات","كريمة","دراسات","سيد","علوم ","امل","E","اسماء بكير","علوم ","ولاء خلف","رياضيات","وردانى","ألعاب","نصر",null,null,null,null,null,null,null,null,null,null,"السبت4"]
[null,5,null,null,null,null,null,null,null,null,null,null,null,null,null,null,null,null,null,null,null,null,null,null,null,null,null,null,null,null,null,null,"E","اسماء بكير","مجالات","سميرة + محمود حسن + سمير عثمان","خط","امل","دين","منى","دراسات","سيد","دين","اسماء عثمان","خط","مختار","علوم ","ولاء خلف","فنية","شيماء رمضان","ألعاب","نصر",null,null,null,null,null,null,null,null,null,null,"السبت5"]
[null,6,null,null,null,null,null,null,null,null,null,null,null,null,null,null,null,null,null,null,null,null,null,null,null,null,null,null,null,null,null,null,"خدمة","شيماء عبدالرحيم","عربى","عبير","مجالات","سميرة + محمود حسن + سمير عثمان","ألعاب","نصر","رياضيات","كريمة","حاسب","احلام","علوم ","ولاء خلف","عربى","سماح","دين","اسماء عثمان","فنية","شيماء رمضان",null,null,null,null,null,null,null,null,null,null,"السبت6"]
[null,7,null,null,null,null,null,null,null,null,null,null,null,null,null,null,null,null,null,null,null,null,null,null,null,null,null,null,null,null,null,null,"خدمة","شيماء عبدالرحيم","عربى","عبير","مجالات","سميرة + محمود حسن + سمير عثمان","ألعاب","نصر","رياضيات","كريمة","حاسب","احلام","علوم ","ولاء خلف","عربى","سماح","دين","اسماء عثمان","فنية","شيماء رمضان",null,null,null,null,null,null,null,null,null,null,"السبت7"]
["الأحد",1,null,null,null,null,null,null,null,null,null,null,null,null,null,null,null,null,null,null,null,null,null,null,null,null,null,null,null,null,null,null,"علوم ","امل","عربى","عبير","رياضيات","احمد","عربى","سامية","فنية","شيماء رمضان","دراسات","سيد","رياضيات","كريمة","عربى","سماح","رياضيات","وردانى","عربى","مختار",null,null,null,null,null,null,null,null,null,null,{"$f":"$A$16&B16","v":"الأحد1"}]
[null,2,null,null,null,null,null,null,null,null,null,null,null,null,null,null,null,null,null,null,null,null,null,null,null,null,null,null,null,null,null,null,"علوم ","امل","عربى","عبير","رياضيات","احمد","عربى","سامية","فنية","شيماء رمضان","دراسات","سيد","رياضيات","كريمة","عربى","سماح","رياضيات","وردانى","عربى","مختار",null,null,null,null,null,null,null,null,null,null,{"$f":"$A$16&B17","v":"الأحد2"}]
[null,3,null,null,null,null,null,null,null,null,null,null,null,null,null,null,null,null,null,null,null,null,null,null,null,null,null,null,null,null,null,null,"دين","مختار","علوم ","امل","E","اسماء بكير","حاسب","احلام","عربى","منى","عربى","منال","دين","اسماء عثمان","خدمة","ولاء خالد","عربى","سماح","E","س س",null,null,null,null,null,null,null,null,null,null,"الأحد3"]
[null,4,null,null,null,null,null,null,null,null,null,null,null,null,null,null,null,null,null,null,null,null,null,null,null,null,null,null,null,null,null,null,"مجالات","سميرة + محمود حسن + سمير عثمان","علوم ","امل","ألعاب","نصر","حاسب","احلام","عربى","منى","عربى","منال","دين","اسماء عثمان","خدمة","ولاء خالد","عربى","سماح","رياضيات","وردانى",null,null,null,null,null,null,null,null,null,null,"الأحد4"]
[null,5,null,null,null,null,null,null,null,null,null,null,null,null,null,null,null,null,null,null,null,null,null,null,null,null,null,null,null,null,null,null,"مجالات","سميرة + محمود حسن + سمير عثمان","دراسات","اسماء عثمان","ألعاب","نصر","خط","امل","E","اسماء بكير","رياضيات","كريمة","عربى","منال","خط","مختار","E","س س","رياضيات","وردانى",null,null,null,null,null,null,null,null,null,null,"الأحد5"]
[null,6,null,null,null,null,null,null,null,null,null,null,null,null,null,null,null,null,null,null,null,null,null,null,null,null,null,null,null,null,null,null,"عربى","عبير","حاسب","احلام","عربى","سامية","دراسات","سيد","دين","منى","رياضيات","كريمة","عربى","منال","فنية","شيماء رمضان","ألعاب","نصر","دين","اسماء عثمان",null,null,null,null,null,null,null,null,null,null,"الأحد6"]
[null,7,null,null,null,null,null,null,null,null,null,null,null,null,null,null,null,null,null,null,null,null,null,null,null,null,null,null,null,null,null,null,"عربى","عبير","حاسب","احلام","عربى","سامية","دراسات","سيد","دين","منى","E","اسماء بكير","خدمة","ولاء خالد","فنية","شيماء رمضان","ألعاب","نصر","دين","اسماء عثمان",null,null,null,null,null,null,null,null,null,null,"الأحد7"]
["الاثنين",1,null,null,null,null,null,null,null,null,null,null,null,null,null,null,null,null,null,null,null,null,null,null,null,null,null,null,null,null,null,null,"رياضيات","احمد","عربى","عبير","E","اسماء بكير","رياضيات","كريمة","ألعاب","نصر","خدمة","ولاء خالد","عربى","منال","علوم ","ولاء خلف","دراسات","سيد","حاسب","صديقة",null,null,null,null,null,null,null,null,null,null,{"$f":"$A$23&B23","v":"الاثنين1"}]
[null,2,null,null,null,null,null,null,null,null,null,null,null,null,null,null,null,null,null,null,null,null,null,null,null,null,null,null,null,null,null,null,"رياضيات","احمد","عربى","عبير","E","اسماء بكير","رياضيات","كريمة","ألعاب","نصر","خدمة","ولاء خالد","عربى","منال","عربى","سماح","دراسات","سيد","حاسب","صديقة",null,null,null,null,null,null,null,null,null,null,{"$f":"$A$23&B24","v":"الاثنين2"}]
[null,3,null,null,null,null,null,null,null,null,null,null,null,null,null,null,null,null,null,null,null,null,null,null,null,null,null,null,null,null,null,null,"دراسات","اسماء عثمان","رياضيات","احمد","دين","سميرة","علوم ","امل","رياضيات","كريمة","عربى","منال","علوم ","ولاء خلف","دراسات","سيد","عربى","سماح","عربى","مختار",null,null,null,null,null,null,null,null,null,null,"الاثنين3"]
[null,4,null,null,null,null,null,null,null,null,null,null,null,null,null,null,null,null,null,null,null,null,null,null,null,null,null,null,null,null,null,null,"عربى","عبير","رياضيات","احمد","دين","سميرة","علوم ","امل","رياضيات","كريمة","عربى","منال","E","اسماء بكير","دراسات","سيد","عربى","سماح","عربى","مختار",null,null,null,null,null,null,null,null,null,null,"الاثنين4"]
[null,5,null,null,null,null,null,null,null,null,null,null,null,null,null,null,null,null,null,null,null,null,null,null,null,null,null,null,null,null,null,null,"عربى","عبير","علوم ","امل","عربى","سامية","دراسات","سيد","عربى","منى","دين","اسماء عثمان","E","اسماء بكير","رياضيات","وردانى","علوم ","ولاء خلف","خدمة","ولاء خالد",null,null,null,null,null,null,null,null,null,null,"الاثنين5"]
[null,6,null,null,null,null,null,null,null,null,null,null,null,null,null,null,null,null,null,null,null,null,null,null,null,null,null,null,null,null,null,null,"ألعاب","سميرة","فنية","شيماء رمضان","خدمة","شيماء عبدالرحيم","E","اسماء بكير","عربى","منى","دين","اسماء عثمان","مجالات","محمود حسن + سمير عثمان + رانيا","رياضيات","وردانى","حاسب","صديقة","خدمة","ولاء خالد",null,null,null,null,null,null,null,null,null,null,"الاثنين6"]
[null,7,null,null,null,null,null,null,null,null,null,null,null,null,null,null,null,null,null,null,null,null,null,null,null,null,null,null,null,null,null,null,"ألعاب","سميرة","فنية","شيماء رمضان","خدمة","شيماء عبدالرحيم","عربى","سامية","علوم ","امل","خط","اسماء عثمان","مجالات","محمود حسن + سمير عثمان + رانيا","E","اسماء بكير","حاسب","صديقة","علوم ","ولاء خلف",null,null,null,null,null,null,null,null,null,null,"الاثنين7"]
["الثلاثاء",1,null,null,null,null,null,null,null,null,null,null,null,null,null,null,null,null,null,null,null,null,null,null,null,null,null,null,null,null,null,null,"فنية","شيماء رمضان","عربى","عبير","علوم ","امل","E","اسماء بكير","عربى","منى","دراسات","سيد","ألعاب","نصر","عربى","سماح","E","س س","رياضيات","وردانى",null,null,null,null,null,null,null,null,null,null,{"$f":"$A$30&B30","v":"الثلاثاء1"}]
[null,2,null,null,null,null,null,null,null,null,null,null,null,null,null,null,null,null,null,null,null,null,null,null,null,null,null,null,null,null,null,null,"فنية","شيماء رمضان","عربى","عبير","علوم ","امل","E","اسماء بكير","عربى","منى","رياضيات","كريمة","ألعاب","نصر","عربى","سماح","E","س س","رياضيات","وردانى",null,null,null,null,null,null,null,null,null,null,{"$f":"$A$30&B31","v":"الثلاثاء2"}]
[null,3,null,null,null,null,null,null,null,null,null,null,null,null,null,null,null,null,null,null,null,null,null,null,null,null,null,null,null,null,null,null,"علوم ","امل","E","اسماء بكير","رياضيات","احمد","عربى","سامية","حاسب","احلام","رياضيات","كريمة","عربى","منال","دراسات","سيد","مجالات","سميرة + محمود حسن + رانيا","عربى","مختار",null,null,null,null,null,null,null,null,null,null,"الثلاثاء3"]
[null,4,null,null,null,null,null,null,null,null,null,null,null,null,null,null,null,null,null,null,null,null,null,null,null,null,null,null,null,null,null,null,"عربى","عبير","E","اسماء بكير","رياضيات","احمد","عربى","سامية","حاسب","احلام","علوم ","امل","عربى","منال","ألعاب","نصر","مجالات","سميرة + محمود حسن + رانيا","عربى","مختار",null,null,null,null,null,null,null,null,null,null,"الثلاثاء4"]
[null,5,null,null,null,null,null,null,null,null,null,null,null,null,null,null,null,null,null,null,null,null,null,null,null,null,null,null,null,null,null,null,"عربى","عبير","دين","سميرة","دراسات","سيد","فنية","شيماء رمضان","علوم ","امل","عربى","منال","دين","اسماء عثمان","ألعاب","نصر","عربى","سماح","E","س س",null,null,null,null,null,null,null,null,null,null,"الثلاثاء5"]
[null,6,null,null,null,null,null,null,null,null,null,null,null,null,null,null,null,null,null,null,null,null,null,null,null,null,null,null,null,null,null,null,"رياضيات","احمد","خدمة","شيماء عبدالرحيم","عربى","سامية","فنية","شيماء رمضان","علوم ","امل","مجالات","محمود حسن + سمير عثمان + رانيا","رياضيات","كريمة","حاسب","احلام","خط","مختار","E","س س",null,null,null,null,null,null,null,null,null,null,"الثلاثاء6"]
[null,7,null,null,null,null,null,null,null,null,null,null,null,null,null,null,null,null,null,null,null,null,null,null,null,null,null,null,null,null,null,null,"رياضيات","احمد","خدمة","شيماء عبدالرحيم","عربى","سامية","علوم ","امل","دراسات","سيد","مجالات","محمود حسن + سمير عثمان + رانيا","رياضيات","كريمة","حاسب","احلام","فنية","شيماء رمضان","دين","اسماء عثمان",null,null,null,null,null,null,null,null,null,null,"الثلاثاء7"]
["الأربعاء",1,null,null,null,null,null,null,null,null,null,null,null,null,null,null,null,null,null,null,null,null,null,null,null,null,null,null,null,null,null,null,"عربى","عبير","رياضيات","احمد","حاسب","احلام","رياضيات","كريمة","مجالات","محمود حسن + سمير عثمان + رانيا","عربى","منال","دراسات","سيد","عربى","سماح","علوم ","ولاء خلف","عربى","مختار",null,null,null,null,null,null,null,null,null,null,{"$f":"$A$37&B37","v":"الأربعاء1"}]
[null,2,null,null,null,null,null,null,null,null,null,null,null,null,null,null,null,null,null,null,null,null,null,null,null,null,null,null,null,null,null,null,"عربى","عبير","رياضيات","احمد","حاسب","احلام","رياضيات","كريمة","مجالات","محمود حسن + سمير عثمان + رانيا","عربى","منال","دراسات","سيد","عربى","سماح","علوم ","ولاء خلف","عربى","مختار",null,null,null,null,null,null,null,null,null,null,{"$f":"$A$37&B38","v":"الأربعاء2"}]
[null,3,null,null,null,null,null,null,null,null,null,null,null,null,null,null,null,null,null,null,null,null,null,null,null,null,null,null,null,null,null,null,"حاسب","احلام","دراسات","اسماء عثمان","عربى","سامية","دين","منى","رياضيات","كريمة","E","اسماء بكير","فنية","شيماء رمضان","رياضيات","وردانى","عربى","سماح","دراسات","سيد",null,null,null,null,null,null,null,null,null,null,"الأربعاء3"]
[null,4,null,null,null,null,null,null,null,null,null,null,null,null,null,null,null,null,null,null,null,null,null,null,null,null,null,null,null,null,null,null,"حاسب","احلام","دراسات","اسماء عثمان","عربى","سامية","دين","منى","رياضيات","كريمة","E","اسماء بكير","فنية","شيماء رمضان","رياضيات","وردانى","عربى","سماح","دراسات","سيد",null,null,null,null,null,null,null,null,null,null,"الأربعاء4"]
[null,5,null,null,null,null,null,null,null,null,null,null,null,null,null,null,null,null,null,null,null,null,null,null,null,null,null,null,null,null,null,null,"دين","مختار","عربى","عبير","دين","سميرة","عربى","سامية","عربى","منى","فنية","شيماء رمضان","عربى","منال","مجالات","محمود حسن + سمير عثمان + رانيا","رياضيات","وردانى","علوم ","ولاء خلف",null,null,null,null,null,null,null,null,null,null,"الأربعاء5"]
[null,6,null,null,null,null,null,null,null,null,null,null,null,null,null,null,null,null,null,null,null,null,null,null,null,null,null,null,null,null,null,null,"دين","مختار","عربى","عبير","علوم ","امل","عربى","سامية","عربى","منى","فنية","شيماء رمضان","عربى","منال","مجالات","محمود حسن + سمير عثمان + رانيا","رياضيات","وردانى","علوم ","ولاء خلف",null,null,null,null,null,null,null,null,null,null,"الأربعاء6"]
[null,7,null,null,null,null,null,null,null,null,null,null,null,null,null,null,null,null,null,null,null,null,null,null,null,null,null,null,null,null,null,null,null,null,null,null,null,null,null,null,null,null,null,null,null,null,null,null,null,null,null,null,null,null,null,null,null,null,null,null,null,null,"الأربعاء7"]
["الخميس",1,null,null,null,null,null,null,null,null,null,null,null,null,null,null,null,null,null,null,null,null,null,null,null,null,null,null,null,null,null,null,"دراسات","اسماء عثمان","عربى","عبير","فنية","شيماء رمضان","عربى","سامية","خدمة","شيماء عبدالرحيم","عربى","منال","رياضيات","كريمة","E","اسماء بكير","خدمة","ولاء خالد","عربى","مختار",null,null,null,null,null,null,null,null,null,null,{"$f":"$A$44&B44","v":"الخميس1"}]
[null,2,null,null,null,null,null,null,null,null,null,null,null,null,null,null,null,null,null,null,null,null,null,null,null,null,null,null,null,null,null,null,"دراسات","اسماء عثمان","عربى","عبير","فنية","شيماء رمضان","عربى","سامية","خدمة","شيماء عبدالرحيم","عربى","منال","رياضيات","كريمة","E","اسماء بكير","خدمة","ولاء خالد","عربى","مختار",null,null,null,null,null,null,null,null,null,null,{"$f":"$A$44&B45","v":"الخميس2"}]
[null,3,null,null,null,null,null,null,null,null,null,null,null,null,null,null,null,null,null,null,null,null,null,null,null,null,null,null,null,null,null,null,"E","اسماء بكير","ألعاب","نصر","عربى","سامية","خدمة","شيماء عبدالرحيم","عربى","منى","رياضيات","كريمة","عربى","منال","عربى","سماح","دراسات","سيد","مجالات","سميرة + سمير عثمان + رانيا",null,null,null,null,null,null,null,null,null,null,"الخميس3"]
[null,4,null,null,null,null,null,null,null,null,null,null,null,null,null,null,null,null,null,null,null,null,null,null,null,null,null,null,null,null,null,null,"E","اسماء بكير","ألعاب","نصر","عربى","سامية","خدمة","شيماء عبدالرحيم","عربى","منى","رياضيات","كريمة","عربى","منال","عربى","سماح","دين","اسماء عثمان","مجالات","سميرة + سمير عثمان + رانيا",null,null,null,null,null,null,null,null,null,null,"الخميس4"]
[null,5,null,null,null,null,null,null,null,null,null,null,null,null,null,null,null,null,null,null,null,null,null,null,null,null,null,null,null,null,null,null,"عربى","عبير","دين","سميرة","رياضيات","احمد","مجالات","محمود حسن + سمير عثمان + رانيا","E","اسماء بكير","ألعاب","نصر","دراسات","سيد","دين","اسماء عثمان","عربى","سماح","رياضيات","وردانى",null,null,null,null,null,null,null,null,null,null,"الخميس5"]
[null,6,null,null,null,null,null,null,null,null,null,null,null,null,null,null,null,null,null,null,null,null,null,null,null,null,null,null,null,null,null,null,"عربى","عبير","دين","سميرة","رياضيات","احمد","مجالات","محمود حسن + سمير عثمان + رانيا","E","اسماء بكير","ألعاب","نصر","خدمة","ولاء خالد","دين","اسماء عثمان","عربى","سماح","رياضيات","وردانى",null,null,null,null,null,null,null,null,null,null,"الخميس6"]
[null,7,null,null,null,null,null,null,null,null,null,null,null,null,null,null,null,null,null,null,null,null,null,null,null,null,null,null,null,null,null,null,null,null,null,null,null,null,null,null,null,null,null,null,null,null,null,null,null,null,null,null,null,null,null,null,null,null,null,null,null,null,"الخميس7"]

{"sheet":"Classes","index":2,"n_rows":59,"n_cols":22,"rows_kept":59,"cut":false,"hidden":false,"merged":[[53,1,54,1],[55,1,56,1],[33,1,34,1],[35,1,36,1],[45,1,46,1],[47,1,48,1],[49,1,50,1],[51,1,52,1],[31,1,32,1],[0,10,0,12],[0,13,0,15],[5,1,6,1],[7,1,8,1],[9,1,10,1],[11,1,12,1],[13,1,14,1],[15,1,16,1],[25,1,26,1],[27,1,28,1],[29,1,30,1]]}
[null,null,null,null,null,null,null,null,null,null,"عدد الفصول",null,null,"صفحات الطباعة"]
[null,{"$f":"Data!$C$2","v":"ادارة ابوتيج التعليمية"},null,null,null,null,null,null,null,null,null,{"$f":"COUNTA(Data!K3:K102)","v":10},null,null,{"$f":"ROUNDUP(L2/3,0)","v":4}]
[{"$f":"L3*3-2","v":1},{"$f":"Data!$C$3","v":"مدرسة نزلة باقور ب . م"},null,"جــدول فصل /",{"$f":"IFERROR(VLOOKUP(A3,Data!$G$3:$M$102,5,FALSE),\"\")","v":"1/4"},"اعتبارا من",{"$f":"Data!$C$9","v":"22/ 9 / 2018 م"},null,null,null,null,1]
[null,"الحصة","الاولى","الثانية","الثالثة","الرابعة","الخامسة","السادسة","السابعة"]
[null,"التوقيت",{"$f":"Data!$C$16","v":"12.10 : 12.40"},{"$f":"Data!$C$17","v":"12.40 : 1.20"},{"$f":"Data!$C$18","v":"1.20 : 2.00"},{"$f":"Data!$C$19","v":"2.00 : 2.40"},{"$f":"Data!$C$20","v":"2.50 : 3.30"},{"$f":"Data!$C$21","v":"3.30 : 4.10"},{"$f":"Data!$C$22","v":"4.10 : 5.00"},null,null,null,null,null,null,null,null,null,null,null,null,1]
[null,"السبت","معادلة المادة","معادلة المادة","معادلة المادة","معادلة المادة","معادلة المادة","معادلة المادة","معادلة المادة"]
[null,null,"معادلة المدرس","معادلة المدرس","معادلة المدرس","معادلة المدرس","معادلة المدرس","معادلة المدرس","معادلة المدرس"]
[null,"الأحد","معادلة المادة","معادلة المادة","معادلة المادة","معادلة المادة","معادلة المادة","معادلة المادة","معادلة المادة"]
[null,null,"معادلة المدرس","معادلة المدرس","معادلة المدرس","معادلة المدرس","معادلة المدرس","معادلة المدرس","معادلة المدرس"]
[null,"الاثنين","معادلة المادة","معادلة المادة","معادلة المادة","معادلة المادة","معادلة المادة","معادلة المادة","معادلة المادة"]
[null,null,"معادلة المدرس","معادلة المدرس","معادلة المدرس","معادلة المدرس","معادلة المدرس","معادلة المدرس","معادلة المدرس",null,null,{"$f":"IFERROR(VLOOKUP(H11,Data!$G$3:$M$102,2,FALSE),\"\")","v":""}]
[null,"الثلاثاء","معادلة المادة","معادلة المادة","معادلة المادة","معادلة المادة","معادلة المادة","معادلة المادة","معادلة المادة"]
[null,null,"معادلة المدرس","معادلة المدرس","معادلة المدرس","معادلة المدرس","معادلة المدرس","معادلة المدرس","معادلة المدرس"]
[null,"الأربعاء","معادلة المادة","معادلة المادة","معادلة المادة","معادلة المادة","معادلة المادة","معادلة المادة","معادلة المادة"]
[null,null,"معادلة المدرس","معادلة المدرس","معادلة المدرس","معادلة المدرس","معادلة المدرس","معادلة المدرس","معادلة المدرس"]
[null,"الخميس","معادلة المادة","معادلة المادة","معادلة المادة","معادلة المادة","معادلة المادة","معادلة المادة","معادلة المادة"]
[null,null,"معادلة المدرس","معادلة المدرس","معادلة المدرس","معادلة المدرس","معادلة المدرس","معادلة المدرس","معادلة المدرس"]
[null,null,"حاسب آلى",null,"لجنة الجدول",null,null,"مدير المدرسة"]
[null,null,{"$f":"Data!$C$5","v":"مختار حسين محمود"},null,{"$f":"Data!$C$6","v":"مسعد سيدهم -احمد رفعت"},null,null,{"$f":"Data!$C$7","v":"سليمان محمد حفنى"}]
[]
[]
[null,{"$f":"Data!$C$2","v":"ادارة ابوتيج التعليمية"}]
[{"$f":"A3+1","v":2},{"$f":"Data!$C$3","v":"مدرسة نزلة باقور ب . م"},null,"جــدول فصل /",{"$f":"IFERROR(VLOOKUP($A$23,Data!$G$3:$M$102,5,FALSE),\"\")","v":"2/4"},"اعتبارا من",{"$f":"Data!$C$9","v":"22/ 9 / 2018 م"}]
[null,"الحصة","الاولى","الثانية","الثالثة","الرابعة","الخامسة","السادسة","السابعة"]
[null,"التوقيت",{"$f":"Data!$C$16","v":"12.10 : 12.40"},{"$f":"Data!$C$17","v":"12.40 : 1.20"},{"$f":"Data!$C$18","v":"1.20 : 2.00"},{"$f":"Data!$C$19","v":"2.00 : 2.40"},{"$f":"Data!$C$20","v":"2.50 : 3.30"},{"$f":"Data!$C$21","v":"3.30 : 4.10"},{"$f":"Data!$C$22","v":"4.10 : 5.00"}]
[null,"السبت"]
[]
[null,"الأحد"]
[]
[null,"الاثنين"]
[]
[null,"الثلاثاء"]
[]
[null,"الأربعاء"]
[]
[null,"الخميس"]
[]
[null,null,"حاسب آلى",null,"لجنة الجدول",null,null,"مدير المدرسة"]
[null,null,{"$f":"Data!$C$5","v":"مختار حسين محمود"},null,{"$f":"Data!$C$6","v":"مسعد سيدهم -احمد رفعت"},null,null,{"$f":"Data!$C$7","v":"سليمان محمد حفنى"}]
[]
[]
[null,{"$f":"Data!$C$2","v":"ادارة ابوتيج التعليمية"}]
[{"$f":"A23+1","v":3},{"$f":"Data!$C$3","v":"مدرسة نزلة باقور ب . م"},null,"جــدول فصل /",{"$f":"IFERROR(VLOOKUP($A$43,Data!$G$3:$M$102,5,FALSE),\"\")","v":"3/4"},"اعتبارا من",{"$f":"Data!$C$9","v":"22/ 9 / 2018 م"}]
[null,"الحصة","الاولى","الثانية","الثالثة","الرابعة","الخامسة","السادسة","السابعة"]
[null,"التوقيت",{"$f":"Data!$C$16","v":"12.10 : 12.40"},{"$f":"Data!$C$17","v":"12.40 : 1.20"},{"$f":"Data!$C$18","v":"1.20 : 2.00"},{"$f":"Data!$C$19","v":"2.00 : 2.40"},{"$f":"Data!$C$20","v":"2.50 : 3.30"},{"$f":"Data!$C$21","v":"3.30 : 4.10"},{"$f":"Data!$C$22","v":"4.10 : 5.00"}]
[null,"السبت"]
[]
[null,"الأحد"]
[]
[null,"الاثنين"]
[]
[null,"الثلاثاء"]
[]
[null,"الأربعاء"]
[]
[null,"الخميس"]
[]
[null,null,"حاسب آلى",null,"لجنة الجدول",null,null,"مدير المدرسة"]
[null,null,{"$f":"Data!$C$5","v":"مختار حسين محمود"},null,{"$f":"Data!$C$6","v":"مسعد سيدهم -احمد رفعت"},null,null,{"$f":"Data!$C$7","v":"سليمان محمد حفنى"}]

{"sheet":"Teachers","index":3,"n_rows":59,"n_cols":19,"rows_kept":59,"cut":false,"hidden":false,"merged":[[35,1,36,1],[0,10,0,12],[0,13,0,15],[15,1,16,1],[5,1,6,1],[7,1,8,1],[9,1,10,1],[11,1,12,1],[13,1,14,1],[25,1,26,1],[27,1,28,1],[29,1,30,1],[31,1,32,1],[33,1,34,1],[15,15,21,15],[49,1,50,1],[51,1,52,1],[53,1,54,1],[55,1,56,1],[45,1,46,1],[47,1,48,1]]}
[null,null,null,null,null,null,null,null,null,null,"عدد المعلمون",null,null,"صفحات الطباعة"]
[null,{"$f":"Data!$C$2","v":"ادارة ابوتيج التعليمية"},null,null,null,null,null,null,null,null,null,{"$f":"COUNTA(Data!H3:H102)","v":25},null,null,{"$f":"ROUNDUP(L2/3,0)","v":9}]
[{"$f":"L3*3-2","v":4},{"$f":"Data!$C$3","v":"مدرسة نزلة باقور ب . م"},null,"جــدول أ /",{"$f":"IFERROR(VLOOKUP(A3,Data!$G$3:$M$102,2,FALSE),\"\")","v":"محمود حسن"},"اعتبارا من",{"$f":"Data!$C$9","v":"22/ 9 / 2018 م"},"عدد الحصص",{"$f":"IFERROR(VLOOKUP(A3,Data!$G$3:$M$102,3,FALSE),\"\")&\"  حصة\"","v":"18  حصة"},null,null,2]
[null,"الحصة","الاولى","الثانية","الثالثة","الرابعة","الخامسة","السادسة","السابعة"]
[null,"التوقيت",{"$f":"Data!$C$16","v":"12.10 : 12.40"},{"$f":"Data!$C$17","v":"12.40 : 1.20"},{"$f":"Data!$C$18","v":"1.20 : 2.00"},{"$f":"Data!$C$19","v":"2.00 : 2.40"},{"$f":"Data!$C$20","v":"2.50 : 3.30"},{"$f":"Data!$C$21","v":"3.30 : 4.10"},{"$f":"Data!$C$22","v":"4.10 : 5.00"}]
[null,"السبت","معادلة لاسم الفصل","معادلة لاسم الفصل","معادلة لاسم الفصل","معادلة لاسم الفصل","معادلة لاسم الفصل","معادلة لاسم الفصل","معادلة لاسم الفصل"]
[null,null,"معادلة لاسم المادة","معادلة لاسم المادة","معادلة لاسم المادة","معادلة لاسم المادة","معادلة لاسم المادة","معادلة لاسم المادة","معادلة لاسم المادة"]
[null,"الأحد"]
[]
[null,"الاثنين"]
[null,null,null,null,null,null,null,null,null,null,null,{"$f":"IFERROR(VLOOKUP(H11,Data!$G$3:$M$102,2,FALSE),\"\")","v":""}]
[null,"الثلاثاء"]
[null,null,null,null,null,null,null,null,null,null,null,"ملحوظة"]
[null,"الأربعاء",null,null,null,null,null,null,null,null,null,"المدرس احيانا يشترك مع مدرس أو مدرسين كما فى حصص المجالات"]
[null,null,null,null,null,null,null,null,null,null,null,null,null,null,null,null,null,"1/1","1/1"]
[null,"الخميس",null,null,null,null,null,null,null,null,null,null,null,null,null,"السبت",1,"العاب","سميرة"]
[null,null,null,null,null,null,null,null,null,null,null,"مثلا أ سميرة بتدرس ",null,null,null,null,2,"مجالات","سميرة + محمود حسن + سمير عثمان"]
[null,null,"حاسب آلى",null,"لجنة الجدول",null,null,"مدير المدرسة",null,null,null,"مادة الالعاب  كمادة مستقلة والمجالات كمادة مشتركة",null,null,null,null,3,"مجالات","سميرة + محمود حسن + سمير عثمان"]
[null,null,{"$f":"Data!$C$5","v":"مختار حسين محمود"},null,{"$f":"Data!$C$6","v":"مسعد سيدهم -احمد رفعت"},null,null,{"$f":"Data!$C$7","v":"سليمان محمد حفنى"},null,null,null,"كيف احصل على جدولها بالمعادلات",null,null,null,null,4]
[null,null,null,null,null,null,null,null,null,null,null,"سواء معادلات اكسل أو udf",null,null,null,null,5]
[null,null,null,null,null,null,null,null,null,null,null,null,null,null,null,null,6]
[null,{"$f":"Data!$C$2","v":"ادارة ابوتيج التعليمية"},null,null,null,null,null,null,null,null,null,null,null,null,null,null,7]
[{"$f":"A3+1","v":5},{"$f":"Data!$C$3","v":"مدرسة نزلة باقور ب . م"},null,"جــدول أ /",{"$f":"IFERROR(VLOOKUP(A23,Data!$G$3:$M$102,2,FALSE),\"\")","v":"سمير عثمان"},"اعتبارا من",{"$f":"Data!$C$9","v":"22/ 9 / 2018 م"},"عدد الحصص",{"$f":"IFERROR(VLOOKUP(A23,Data!$G$3:$M$102,3,FALSE),\"\")&\"  حصة\"","v":"18  حصة"}]
[null,"الحصة","الاولى","الثانية","الثالثة","الرابعة","الخامسة","السادسة","السابعة"]
[null,"التوقيت",{"$f":"Data!$C$16","v":"12.10 : 12.40"},{"$f":"Data!$C$17","v":"12.40 : 1.20"},{"$f":"Data!$C$18","v":"1.20 : 2.00"},{"$f":"Data!$C$19","v":"2.00 : 2.40"},{"$f":"Data!$C$20","v":"2.50 : 3.30"},{"$f":"Data!$C$21","v":"3.30 : 4.10"},{"$f":"Data!$C$22","v":"4.10 : 5.00"}]
[null,"السبت"]
[]
[null,"الأحد"]
[]
[null,"الاثنين"]
[]
[null,"الثلاثاء"]
[]
[null,"الأربعاء"]
[]
[null,"الخميس"]
[]
[null,null,"حاسب آلى",null,"لجنة الجدول",null,null,"مدير المدرسة"]
[null,null,{"$f":"Data!$C$5","v":"مختار حسين محمود"},null,{"$f":"Data!$C$6","v":"مسعد سيدهم -احمد رفعت"},null,null,{"$f":"Data!$C$7","v":"سليمان محمد حفنى"}]
[]
[]
[null,{"$f":"Data!$C$2","v":"ادارة ابوتيج التعليمية"}]
[{"$f":"A23+1","v":6},{"$f":"Data!$C$3","v":"مدرسة نزلة باقور ب . م"},null,"جــدول أ /",{"$f":"IFERROR(VLOOKUP(A43,Data!$G$3:$M$102,2,FALSE),\"\")","v":"وردانى"},"اعتبارا من",{"$f":"Data!$C$9","v":"22/ 9 / 2018 م"},"عدد الحصص",{"$f":"IFERROR(VLOOKUP(A43,Data!$G$3:$M$102,3,FALSE),\"\")&\"  حصة\"","v":"18  حصة"}]
[null,"الحصة","الاولى","الثانية","الثالثة","الرابعة","الخامسة","السادسة","السابعة"]
[null,"التوقيت",{"$f":"Data!$C$16","v":"12.10 : 12.40"},{"$f":"Data!$C$17","v":"12.40 : 1.20"},{"$f":"Data!$C$18","v":"1.20 : 2.00"},{"$f":"Data!$C$19","v":"2.00 : 2.40"},{"$f":"Data!$C$20","v":"2.50 : 3.30"},{"$f":"Data!$C$21","v":"3.30 : 4.10"},{"$f":"Data!$C$22","v":"4.10 : 5.00"}]
[null,"السبت"]
[]
[null,"الأحد"]
[]
[null,"الاثنين"]
[]
[null,"الثلاثاء"]
[]
[null,"الأربعاء"]
[]
[null,"الخميس"]
[]
[null,null,"حاسب آلى",null,"لجنة الجدول",null,null,"مدير المدرسة"]
[null,null,{"$f":"Data!$C$5","v":"مختار حسين محمود"},null,{"$f":"Data!$C$6","v":"مسعد سيدهم -احمد رفعت"},null,null,{"$f":"Data!$C$7","v":"سليمان محمد حفنى"}]